fUSD/lending_fUSD_20251024
["ID","MTS","AMOUNT","RATE_DAILY","PERIOD"]
[392233375,1761273049489,-900.0,0.000417,15]
[392233376,1761273049501,-265.56,0.00041708,120]
[392233377,1761273049511,-151.22134055,0.00041725,15]
[392233378,1761273049521,-43627.6071913,0.0004174,3]
[392233379,1761273049531,-30146.2844859,0.0004174,3]
[392233380,1761273049541,-145425.357304,0.0004175,3]
[392233381,1761273049550,-142118.198291,0.0004175,3]
[392233382,1761273049559,-151.0,0.0004175,120]
[392233383,1761273049571,-3210.935272,0.0004176,2]
[392233384,1761273049581,-291308.1241155,0.0004176,2]
[392233385,1761273049591,-153.295162,0.0004176,120]
[392233386,1761273049600,-151.0,0.0004176,120]
[392233387,1761273049609,-487.61641369,0.00041773,10]
[392233388,1761273049619,-501.64168909,0.00041773,7]
[392233389,1761273049629,-500.0,0.00041773,10]
[392233390,1761273049639,-501.01863246,0.00041773,10]
[392233391,1761273049648,-503.19819362,0.00041773,10]
[392233392,1761273049658,-500.0,0.00041773,10]
[392233393,1761273049667,-502.77701551,0.00041773,10]
[392233394,1761273049678,-507.89357814,0.00041773,10]
[392233395,1761273049687,-502.16027454,0.00041773,10]
[392233396,1761273049698,-500.0,0.00041773,10]
[392233397,1761273049708,-4306.61206941,0.00041775,3]
[392233398,1761273049717,-2787.94464612,0.00041785,15]
[392233399,1761273049726,-1058.52,0.000418,14]
[392233400,1761273049736,-1000.0,0.000418,80]
[392233401,1761273049746,-1000.0,0.000418,90]
[392233402,1761273049757,-1000.0,0.000418,120]
[392233403,1761273049766,-1300.0,0.000418,15]
[392233404,1761273049775,-14542.5357304,0.00041842,3]
[392233405,1761273049784,-4306.61206941,0.00041842,3]
[392233406,1761273049793,-4306.61206941,0.00041862,3]
[392233407,1761273049803,-381.061,0.00041872,2]
[392233408,1761273049812,-8613.22413882,0.00041885,3]
[392233409,1761273049823,-12919.8362082,0.00041886,3]
[392233410,1761273049833,-4306.61206941,0.00041887,3]
[392233411,1761273049842,-4306.61206941,0.00041892,3]
[392233412,1761273049852,-1793.73212248,0.00041895,3]
[392233413,1761273050373,-545.09,0.00041632,30]
[392233414,1761273050383,-2939.08819722,0.00041895,3]
[392233415,1761273050398,-2961.94826072,0.00041895,3]
[392233416,1761273050414,-3784.18058883,0.00041895,3]
[392233417,1761273051058,-503.2,0.00041095,30]
[392233418,1761273051069,-731.37,0.00041095,30]
[392233419,1761273051080,-503.2,0.00041369,30]
[392233420,1761273051089,-503.2,0.00041643,30]
[392233421,1761273051100,-5747.49910835,0.00041895,3]
[392233422,1761273051109,-1800.0,0.000419,15]
[392233423,1761273051118,-299.99,0.00041902,120]
[392233424,1761273051127,-500.0,0.00041906,30]
[392233425,1761273051136,-500.0,0.00041906,30]
[392233426,1761273051146,-440.7483723,0.00041906,30]
[392233427,1761273051158,-59.2516277,0.00041906,30]
[392233428,1761273051167,-500.0,0.00041906,30]
[392233429,1761273051176,-500.0,0.00041906,30]
[392233430,1761273051185,-500.0,0.00041906,30]
[392233431,1761273051195,-500.0,0.00041906,30]
[392233432,1761273051204,-500.0,0.00041906,30]
[392233433,1761273051213,-520.59137707,0.00041906,30]
[392233434,1761273051223,-500.0,0.00041906,30]
[392233435,1761273051232,-500.0,0.00041906,30]
[392233436,1761273051242,-500.0,0.00041906,30]
[392233437,1761273051252,-500.0,0.00041906,30]
[392233438,1761273051261,-420.15699523,0.00041906,30]
[392233439,1761273051372,-731.37,0.00041369,30]
[392233440,1761273051382,-151.0,0.00041631,120]
[392233441,1761273051391,-79.84300477,0.00041906,30]
[392233442,1761273051400,-503.28482103,0.00041906,30]
[392233443,1761273051409,-500.0,0.00041906,30]
[392233444,1761273051419,-246.57646573,0.00041906,30]
[392233445,1761273051430,-500.0,0.00041906,30]
[392233446,1761273051439,-640.69,0.00041906,30]
[392233447,1761273051448,-500.0,0.00041906,30]
[392233448,1761273051459,-500.0,0.00041906,30]
[392233449,1761273051469,-500.0,0.00041906,30]
[392233450,1761273051481,-1022.69,0.00041906,30]
[392233451,1761273051490,-500.0,0.00041906,30]
[392233452,1761273051499,-506.4,0.00041906,30]
[392233453,1761273051508,-984.27,0.00041906,30]
[392233454,1761273051517,-1723.44,0.00041906,30]
[392233455,1761273051526,-564.23,0.00041906,30]
[392233456,1761273051535,-500.0,0.00041906,30]
[392233457,1761273051544,-500.0,0.00041906,30]
[392233458,1761273051553,-500.0,0.00041906,30]
[392233459,1761273051562,-500.0,0.00041906,30]
[392233460,1761273051571,-521.07,0.00041906,30]
[392233461,1761273051580,-528.83,0.00041906,30]
[392233462,1761273051589,-1211.11,0.00041906,30]
[392233463,1761273051599,-587.08,0.00041906,30]
[392233464,1761273051608,-1052.41,0.00041906,30]
[392233465,1761273051618,-511.49,0.00041906,30]
[392233466,1761273051627,-1242.49,0.00041906,30]
[392233467,1761273051636,-500.0,0.00041906,30]
[392233468,1761273051645,-500.0,0.00041906,30]
[392233469,1761273051654,-573.5,0.00041906,30]
[392233470,1761273051663,-500.0,0.00041906,30]
[392233471,1761273051672,-500.0,0.00041906,30]
[392233472,1761273051681,-592.74,0.00041906,30]
[392233473,1761273051690,-500.0,0.00041906,30]
[392233474,1761273051699,-500.0,0.00041906,30]
[392233475,1761273051708,-500.0,0.00041906,30]
[392233476,1761273051717,-500.0,0.00041906,30]
[392233477,1761273051726,-500.0,0.00041906,30]
[392233478,1761273051735,-538.35,0.00041906,30]
[392233479,1761273051744,-500.0,0.00041906,30]
[392233480,1761273051753,-500.0,0.00041906,30]
[392233481,1761273051762,-960.92,0.00041906,30]
[392233482,1761273051771,-1377.29,0.00041906,30]
[392233483,1761273051779,-500.0,0.00041906,30]
[392233484,1761273051788,-500.0,0.00041906,30]
[392233485,1761273051797,-500.0,0.00041906,30]
[392233486,1761273051806,-500.0,0.00041906,30]
[392233487,1761273051815,-500.0,0.00041906,30]
[392233488,1761273051824,-1086.75,0.00041906,30]
[392233489,1761273051833,-584.8,0.00041906,30]
[392233490,1761273051843,-500.0,0.00041906,30]
[392233491,1761273051851,-500.0,0.00041906,30]
[392233492,1761273051860,-1093.43,0.00041906,30]
[392233493,1761273051870,-500.0,0.00041906,30]
[392233494,1761273051879,-500.0,0.00041906,30]
[392233495,1761273051889,-545.09,0.00041906,30]
[392233496,1761273052017,-500.0,0.00041914,30]
[392233497,1761273052027,-500.0,0.00041914,30]
[392233498,1761273052036,-500.0,0.00041914,30]
[392233499,1761273052046,-500.0,0.00041914,30]
[392233500,1761273052055,-500.0,0.00041914,30]
[392233501,1761273052065,-500.0,0.00041914,30]
[392233502,1761273052075,-539.24053508,0.00041914,30]
[392233503,1761273052084,-500.0,0.00041914,30]
[392233504,1761273052093,-500.0,0.00041914,30]
[392233505,1761273052102,-500.0,0.00041914,30]
[392233506,1761273052111,-500.0,0.00041915,30]
[392233507,1761273052120,-500.0,0.00041915,30]
[392233508,1761273052133,-518.3,0.00041915,30]
[392233509,1761273052142,-212.57988722,0.00041915,30]
[392233510,1761273052151,-500.0,0.00041915,30]
[392233511,1761273052160,-500.0,0.00041915,30]
[392233512,1761273052170,-500.0,0.00041915,30]
[392233513,1761273052179,-500.0,0.00041915,30]
[392233514,1761273052188,-500.0,0.00041915,30]
[392233515,1761273052197,-500.0,0.00041915,30]
[392233516,1761273052208,-500.0,0.00041915,30]
[392233517,1761273052218,-500.0,0.00041915,30]
[392233518,1761273052228,-739.09,0.00041915,30]
[392233519,1761273052237,-921.92,0.00041915,30]
[392233520,1761273052249,-500.0,0.00041915,30]
[392233521,1761273052270,-500.0,0.00041915,30]
[392233522,1761273052284,-500.0,0.00041915,30]
[392233523,1761273052294,-506.51,0.00041915,30]
[392233524,1761273052303,-500.0,0.00041915,30]
[392233525,1761273052313,-500.0,0.00041915,30]
[392233526,1761273052324,-500.0,0.00041915,30]
[392233527,1761273052333,-501.43237028,0.00041915,30]
[392233528,1761273052343,-500.0,0.00041915,30]
[392233529,1761273052353,-500.0,0.00041915,30]
[392233530,1761273052362,-684.08,0.00041915,30]
[392233531,1761273052371,-500.0,0.00041915,30]
[392233532,1761273052381,-500.0,0.00041915,30]
[392233533,1761273052390,-500.0,0.00041915,30]
[392233534,1761273052400,-209.85675906,0.00041915,30]
[392233535,1761273052414,-290.14324094,0.00041915,30]
[392233536,1761273052424,-500.0,0.00041915,30]
[392233537,1761273052434,-500.0,0.00041915,30]
[392233538,1761273052443,-500.0,0.00041915,30]
[392233539,1761273052452,-1143.41,0.00041915,30]
[392233540,1761273052462,-281.44368282,0.00041915,30]
[392233541,1761273052471,-1058.16,0.00041915,30]
[392233542,1761273052480,-500.0,0.00041915,30]
[392233543,1761273052490,-500.0,0.00041915,30]
[392233544,1761273052500,-500.0,0.00041915,30]
[392233545,1761273052510,-512.99,0.00041915,30]
[392233546,1761273052520,-500.0,0.00041915,30]
[392233547,1761273052530,-500.0,0.00041915,30]
[392233548,1761273052539,-500.0,0.00041915,30]
[392233549,1761273052549,-500.0,0.00041915,30]
[392233550,1761273052558,-500.0,0.00041915,30]
[392233551,1761273052568,-500.0,0.00041915,30]
[392233552,1761273052579,-500.0,0.00041915,30]
[392233553,1761273052589,-500.0,0.00041915,30]
[392233554,1761273052600,-500.0,0.00041915,30]
[392233555,1761273052609,-500.0,0.00041915,30]
[392233556,1761273052620,-656.68,0.00041915,30]
[392233557,1761273052630,-540.68003901,0.00041915,30]
[392233558,1761273052641,-500.0,0.00041915,30]
[392233559,1761273052651,-500.0,0.00041915,30]
[392233560,1761273052661,-545.39,0.00041915,30]
[392233561,1761273052670,-692.41,0.00041915,30]
[392233562,1761273052680,-500.0,0.00041915,30]
[392233563,1761273052690,-500.0,0.00041915,30]
[392233564,1761273052701,-689.33,0.00041915,30]
[392233565,1761273052710,-738.29,0.00041915,30]
[392233566,1761273052719,-514.1,0.00041915,30]
[392233567,1761273052729,-500.0,0.00041915,30]
[392233568,1761273052739,-500.0,0.00041915,30]
[392233569,1761273052749,-500.0,0.00041915,30]
[392233570,1761273052759,-500.0,0.00041915,30]
[392233571,1761273052769,-500.0,0.00041915,30]
[392233572,1761273052780,-500.0,0.00041915,30]
[392233573,1761273052789,-678.66,0.00041915,30]
[392233574,1761273052799,-519.72252991,0.00041915,30]
[392233575,1761273052808,-500.0,0.00041915,30]
[392233576,1761273052818,-962.73,0.00041915,30]
[392233577,1761273052827,-856.27,0.00041915,30]
[392233578,1761273052836,-500.0,0.00041915,30]
[392233579,1761273052846,-500.0,0.00041915,30]
[392233580,1761273052855,-500.0,0.00041915,30]
[392233581,1761273052865,-500.0,0.00041915,30]
[392233582,1761273052874,-500.0,0.00041915,30]
[392233583,1761273052883,-765.03,0.00041915,30]
[392233584,1761273052892,-500.0,0.00041915,30]
[392233585,1761273052902,-500.0,0.00041915,30]
[392233586,1761273052912,-649.15,0.00041915,30]
[392233587,1761273052923,-590.9,0.00041915,30]
[392233588,1761273052934,-500.0,0.00041915,30]
[392233589,1761273052944,-500.0,0.00041915,30]
[392233590,1761273052955,-500.0,0.00041915,30]
[392233591,1761273052965,-501.15976672,0.00041915,30]
[392233592,1761273052976,-1758.27,0.00041915,30]
[392233593,1761273052988,-524.52,0.00041915,30]
[392233594,1761273052998,-500.0,0.00041915,30]
[392233595,1761273053008,-500.0,0.00041915,30]
[392233596,1761273053018,-657.4,0.00041915,30]
[392233597,1761273053032,-500.0,0.00041915,30]
[392233598,1761273053042,-972.69,0.00041915,30]
[392233599,1761273053052,-500.0,0.00041915,30]
[392233600,1761273053063,-500.0,0.00041915,30]
[392233601,1761273053073,-500.0,0.00041915,30]
[392233602,1761273053083,-622.24,0.00041915,30]
[392233603,1761273053093,-500.0,0.00041915,30]
[392233604,1761273053104,-500.0,0.00041915,30]
[392233605,1761273053114,-500.0,0.00041915,30]
[392233606,1761273053124,-500.0,0.00041915,30]
[392233607,1761273053134,-500.0,0.00041915,30]
[392233608,1761273053144,-500.0,0.00041915,30]
[392233609,1761273053154,-634.77,0.00041915,30]
[392233610,1761273053164,-500.0,0.00041915,30]
[392233611,1761273053175,-500.0,0.00041915,30]
[392233612,1761273053185,-500.0,0.00041915,30]
[392233613,1761273053196,-501.42656626,0.00041915,30]
[392233614,1761273053207,-500.0,0.00041915,30]
[392233615,1761273053217,-847.78,0.00041915,30]
[392233616,1761273053227,-500.0,0.00041915,30]
[392233617,1761273053238,-545.26,0.00041915,30]
[392233618,1761273053248,-500.0,0.00041915,30]
[392233619,1761273053258,-428.61352834,0.00041915,30]
[392233620,1761273053295,-635.11647166,0.00041915,30]
[392233621,1761273053306,-500.0,0.00041915,30]
[392233622,1761273053316,-500.0,0.00041915,30]
[392233623,1761273053326,-500.0,0.00041915,30]
[392233624,1761273053336,-500.0,0.00041915,30]
[392233625,1761273053347,-960.06,0.00041915,30]
[392233626,1761273053357,-500.6254083,0.00041915,30]
[392233627,1761273053368,-500.0,0.00041915,30]
[392233628,1761273053378,-596.68,0.00041915,30]
[392233629,1761273053388,-500.0,0.00041915,30]
[392233630,1761273053398,-279.41911026,0.00041915,30]
[392233631,1761273054216,-281.4466126,0.00041095,30]
[392233632,1761273054326,-475.05000015,0.00041095,30]
[392233637,1761273153149,312.19,0.00013699,2]
[392233638,1761273154916,-220.19465278,0.00020187,2]
[392233641,1761273184845,-91.99534722,0.00020187,2]
[392233642,1761273184868,-172.19196493,0.00026676,2]
[392233643,1761273304936,-177.7291089,0.00024932,2]
[392233713,1761274045571,-139.99803507,0.00026676,2]
[392233714,1761274045596,-298.1716457,0.00027425,120]
[392233722,1761274231563,-200.20869457,0.00027288,2]
[392233723,1761274231573,-156.0,0.00031,120]
[392233724,1761274231582,-557.33222245,0.00032278,120]
[392233725,1761274231723,-2717.25698963,0.00032278,120]
[392233726,1761274231733,-150.0,0.00033019,2]
[392233727,1761274231743,-302.0,0.00033019,3]
[392233728,1761274231752,-300.0,0.00033019,3]
[392233729,1761274231763,-1200.0,0.00033019,3]
[392233730,1761274231774,-262.0,0.0003302,90]
[392233731,1761274231783,-262.0,0.0003302,90]
[392233732,1761274231793,-262.0,0.0003302,90]
[392233733,1761274231803,-262.0,0.0003302,90]
[392233734,1761274231813,-262.0,0.0003302,90]
[392233735,1761274231822,-262.0,0.0003302,90]
[392233736,1761274231831,-262.0,0.0003302,90]
[392233737,1761274231842,-262.0,0.0003302,90]
[392233738,1761274231851,-262.0,0.0003302,90]
[392233739,1761274231861,-262.0,0.0003302,90]
[392233740,1761274231871,-262.0,0.0003302,90]
[392233741,1761274231880,-262.0,0.0003302,90]
[392233742,1761274231890,-262.0,0.0003302,90]
[392233743,1761274231900,-262.0,0.0003302,90]
[392233744,1761274231910,-262.0,0.0003302,90]
[392233745,1761274231921,-262.0,0.0003302,90]
[392233746,1761274231930,-262.0,0.0003302,90]
[392233747,1761274231940,-262.0,0.0003302,90]
[392233749,1761274231949,-262.0,0.0003302,90]
[392233751,1761274231958,-262.0,0.0003302,90]
[392233752,1761274231968,-168.0,0.0003302,90]
[392233753,1761274231980,-168.0,0.0003302,90]
[392233754,1761274231990,-168.0,0.0003302,90]
[392233755,1761274232003,-168.0,0.0003302,90]
[392233756,1761274232013,-168.0,0.0003302,90]
[392233757,1761274232022,-168.0,0.0003302,90]
[392233758,1761274232033,-168.0,0.0003302,90]
[392233759,1761274232042,-168.0,0.0003302,90]
[392233760,1761274232051,-168.0,0.0003302,90]
[392233761,1761274232060,-168.0,0.0003302,90]
[392233762,1761274232070,-168.0,0.0003302,90]
[392233763,1761274232080,-168.0,0.0003302,90]
[392233764,1761274232092,-168.0,0.0003302,90]
[392233765,1761274232102,-168.0,0.0003302,90]
[392233766,1761274232114,-168.0,0.0003302,90]
[392233767,1761274232125,-168.0,0.0003302,90]
[392233768,1761274232136,-168.0,0.0003302,90]
[392233769,1761274232147,-168.0,0.0003302,90]
[392233770,1761274232156,-168.0,0.0003302,90]
[392233771,1761274232166,-168.0,0.0003302,90]
[392233772,1761274232178,-168.0,0.0003302,90]
[392233773,1761274232188,-168.0,0.0003302,90]
[392233774,1761274232199,-168.0,0.0003302,90]
[392233775,1761274232209,-168.0,0.0003302,90]
[392233776,1761274232218,-340.0,0.0003302,90]
[392233777,1761274232227,-340.0,0.0003302,90]
[392233778,1761274232237,-340.0,0.0003302,90]
[392233779,1761274232246,-340.0,0.0003302,90]
[392233780,1761274232255,-340.0,0.0003302,90]
[392233781,1761274232266,-340.0,0.0003302,90]
[392233782,1761274232276,-340.0,0.0003302,90]
[392233783,1761274232287,-340.0,0.0003302,90]
[392233784,1761274232296,-340.0,0.0003302,90]
[392233785,1761274232306,-340.0,0.0003302,90]
[392233786,1761274232315,-340.0,0.0003302,90]
[392233787,1761274232325,-340.0,0.0003302,90]
[392233788,1761274232335,-340.0,0.0003302,90]
[392233789,1761274232345,-264.0,0.0003302,90]
[392233790,1761274232355,-264.0,0.0003302,90]
[392233791,1761274232365,-264.0,0.0003302,90]
[392233792,1761274232375,-264.0,0.0003302,90]
[392233793,1761274232384,-264.0,0.0003302,90]
[392233794,1761274232394,-264.0,0.0003302,90]
[392233795,1761274232404,-264.0,0.0003302,90]
[392233796,1761274232413,-264.0,0.0003302,90]
[392233797,1761274232424,-264.0,0.0003302,90]
[392233798,1761274232435,-264.0,0.0003302,90]
[392233799,1761274232445,-264.0,0.0003302,90]
[392233800,1761274232454,-264.0,0.0003302,90]
[392233801,1761274232463,-264.0,0.0003302,90]
[392233802,1761274232473,-402.0,0.0003302,90]
[392233803,1761274232482,-402.0,0.0003302,90]
[392233804,1761274232491,-402.0,0.0003302,90]
[392233805,1761274232500,-402.0,0.0003302,90]
[392233806,1761274232510,-402.0,0.0003302,90]
[392233807,1761274232519,-402.0,0.0003302,90]
[392233808,1761274232528,-402.0,0.0003302,90]
[392233809,1761274232539,-402.0,0.0003302,90]
[392233810,1761274232549,-402.0,0.0003302,90]
[392233811,1761274232558,-402.0,0.0003302,90]
[392233812,1761274232568,-402.0,0.0003302,90]
[392233813,1761274232577,-402.0,0.0003302,90]
[392233814,1761274232589,-402.0,0.0003302,90]
[392233815,1761274232599,-402.0,0.0003302,90]
[392233816,1761274232609,-276.0,0.0003302,90]
[392233817,1761274232619,-276.0,0.0003302,90]
[392233818,1761274232628,-276.0,0.0003302,90]
[392233819,1761274232638,-276.0,0.0003302,90]
[392233820,1761274232648,-276.0,0.0003302,90]
[392233821,1761274232658,-276.0,0.0003302,90]
[392233822,1761274232667,-276.0,0.0003302,90]
[392233823,1761274232676,-276.0,0.0003302,90]
[392233824,1761274232686,-276.0,0.0003302,90]
[392233825,1761274232695,-276.0,0.0003302,90]
[392233826,1761274232704,-276.0,0.0003302,90]
[392233827,1761274232713,-276.0,0.0003302,90]
[392233828,1761274232723,-276.0,0.0003302,90]
[392233829,1761274232732,-276.0,0.0003302,90]
[392233830,1761274232741,-312.19,0.00033165,2]
[392233831,1761274232750,-179.44,0.00036489,2]
[392233832,1761274232759,-150.0,0.00036691,120]
[392233833,1761274232769,-150.0,0.00036691,120]
[392233834,1761274232778,-150.0,0.00036691,120]
[392233835,1761274232787,-150.0,0.00036691,120]
[392233836,1761274232797,-150.0,0.00036691,120]
[392233837,1761274232806,-150.0,0.00036691,120]
[392233838,1761274232815,-150.0,0.00036691,120]
[392233839,1761274232824,-150.0,0.00036691,120]
[392233840,1761274232833,-150.0,0.00036691,120]
[392233841,1761274232843,-200.0,0.00036691,120]
[392233842,1761274232853,-1210.0,0.00036692,3]
[392233843,1761274232862,-150.0,0.00037455,4]
[392233844,1761274232872,-150.0,0.00037455,4]
[392233845,1761274232881,-150.0,0.00037455,4]
[392233846,1761274232891,-213.74767997,0.00037941,30]
[392233847,1761274232900,-219.71972845,0.00037941,30]
[392233848,1761274232909,-166.66,0.00038005,30]
[392233849,1761274232919,-152.0,0.0003864,3]
[392233850,1761274232928,-166.66,0.00038805,30]
[392233851,1761274232937,-1262.69,0.00039104,2]
[392233852,1761274232947,-1056.66,0.00039236,2]
[392233853,1761274232956,-200.0,0.00039325,2]
[392233854,1761274232965,-174.6,0.0003934,2]
[392233855,1761274232975,-942.98,0.00039397,2]
[392233856,1761274232984,-166.66,0.00039605,30]
[392233857,1761274232994,-312.19,0.00039654,2]
[392233858,1761274233003,-435.24,0.00039927,2]
[392233859,1761274233012,-250.0,0.00040053,2]
[392233860,1761274233022,-392.55,0.00040109,120]
[392233861,1761274233032,-152.0,0.00040385,4]
[392233862,1761274233042,-166.66,0.00040406,30]
[392233863,1761274233051,-414.24,0.00040575,2]
[392233864,1761274233060,-547.46,0.00040575,2]
[392233865,1761274233069,-559.9,0.00040575,2]
[392233866,1761274233079,-414.24,0.00040575,2]
[392233867,1761274233088,-423.57,0.00040575,2]
[392233868,1761274233098,-500.0,0.000407,14]
[392233869,1761274233107,-1100.0,0.000408,14]
[392233870,1761274233116,-547.46,0.00040878,2]
[392233871,1761274233126,-2391.2,0.00040878,2]
[392233872,1761274233135,-414.24,0.00040878,2]
[392233873,1761274233145,-1700.0,0.000409,14]
[392233874,1761274233155,-5221.37624004,0.00040995,15]
[392233875,1761274233164,-498.94490376,0.00040995,13]
[392233876,1761274233174,-500.0,0.00041084,31]
[392233877,1761274233183,-647.30065513,0.00041084,31]
[392233878,1761274233193,-383.05644433,0.00041084,31]
[392233879,1761274233203,-88479.7728029,0.00041085,3]
[392233880,1761274233213,-1012.13,0.00041085,2]
[392233881,1761274233223,-312.625,0.00041094,60]
[392233882,1761274233233,-516.38749174,0.00041094,30]
[392233883,1761274233243,-500.0,0.00041094,7]
[392233884,1761274233252,-500.0,0.00041094,30]
[392233885,1761274233262,-533.69971981,0.00041094,30]
[392233886,1761274233271,-512.63172856,0.00041094,30]
[392233887,1761274233281,-500.0,0.00041095,30]
[392233888,1761274233293,-500.0,0.00041095,30]
[392233889,1761274233303,-500.0,0.00041095,30]
[392233890,1761274233313,-500.0,0.00041095,30]
[392233891,1761274233323,-500.0,0.00041095,30]
[392233892,1761274233333,-500.0,0.00041095,30]
[392233893,1761274233343,-500.0,0.00041095,30]
[392233894,1761274233352,-500.0,0.00041095,30]
[392233895,1761274233362,-500.0,0.00041095,30]
[392233896,1761274233371,-500.0,0.00041095,30]
[392233897,1761274233381,-500.0,0.00041095,30]
[392233898,1761274233390,-647.03,0.00041095,30]
[392233899,1761274233400,-973.29,0.00041095,30]
[392233900,1761274233410,-500.0,0.00041095,30]
[392233901,1761274233419,-500.0,0.00041095,30]
[392233902,1761274233429,-500.0,0.00041095,30]
[392233903,1761274233438,-500.0,0.00041095,30]
[392233904,1761274233448,-500.0,0.00041095,30]
[392233905,1761274233458,-500.0,0.00041095,30]
[392233906,1761274233468,-1019.83,0.00041095,30]
[392233907,1761274233478,-622.99764025,0.00041095,30]
[392233908,1761274233488,-500.0,0.00041095,30]
[392233909,1761274233497,-962.29,0.00041095,30]
[392233910,1761274233881,-500.0,0.00041095,30]
[392233911,1761274233891,-500.0,0.00041095,30]
[392233912,1761274233903,-1406.24,0.00041095,30]
[392233913,1761274233926,-511.61051368,0.00041095,30]
[392233914,1761274233936,-500.0,0.00041095,30]
[392233915,1761274233945,-567.97,0.00041095,30]
[392233916,1761274233955,-1035.33,0.00041095,30]
[392233917,1761274233964,-434.08494052,0.00041095,30]
[392233918,1761274233974,-500.0,0.00041095,30]
[392233919,1761274233984,-500.0,0.00041095,30]
[392233920,1761274233993,-500.0,0.00041095,30]
[392233921,1761274234003,-500.0,0.00041095,30]
[392233922,1761274234012,-500.0,0.00041095,30]
[392233923,1761274234021,-500.0,0.00041095,30]
[392233924,1761274234031,-639.76,0.00041095,30]
[392233925,1761274234041,-500.0,0.00041095,30]
[392233926,1761274234050,-692.37,0.00041095,30]
[392233927,1761274234060,-844.94,0.00041095,30]
[392233928,1761274234069,-412.07054026,0.00041095,30]
[392233929,1761274234078,-500.0,0.00041095,30]
[392233930,1761274234088,-500.0,0.00041095,30]
[392233931,1761274234097,-507.14,0.00041095,30]
[392233932,1761274234107,-500.0,0.00041095,30]
[392233933,1761274234116,-500.0,0.00041095,30]
[392233934,1761274234126,-272.00163084,0.00041095,30]
[392233935,1761274234135,-852.17,0.00041095,30]
[392233936,1761274234145,-500.0,0.00041095,30]
[392233937,1761274234155,-500.0,0.00041095,30]
[392233938,1761274234165,-543.83,0.00041095,30]
[392233939,1761274234175,-1009.51,0.00041095,30]
[392233940,1761274234185,-500.0,0.00041095,30]
[392233941,1761274234194,-500.0,0.00041095,30]
[392233942,1761274234205,-500.0,0.00041095,30]
[392233943,1761274234215,-947.18,0.00041095,30]
[392233944,1761274234226,-500.0,0.00041095,30]
[392233945,1761274234237,-805.92,0.00041095,30]
[392233946,1761274234247,-983.23,0.00041095,30]
[392233947,1761274234258,-500.0,0.00041095,30]
[392233948,1761274234268,-500.0,0.00041095,30]
[392233949,1761274234278,-534.6,0.00041095,30]
[392233950,1761274234288,-500.0,0.00041095,30]
[392233951,1761274234299,-500.0,0.00041095,30]
[392233952,1761274234308,-500.0,0.00041095,30]
[392233953,1761274234318,-1693.52,0.00041095,30]
[392233954,1761274234327,-500.0,0.00041095,30]
[392233955,1761274234338,-500.0,0.00041095,30]
[392233956,1761274234347,-500.0,0.00041095,30]
[392233957,1761274234357,-1592.4,0.00041095,30]
[392233958,1761274234366,-519.87308813,0.00041095,30]